bitfinex-derivatives/quotes_BNBF0:USTF0_20250115
["timestamp","ask_amount","ask_price","bid_price","bid_amount"]
[1736984639065,3.11219661,714.79,713.56,0.28028476]
[1736984639268,3.11219661,714.78,713.56,0.28028476]
[1736984639466,3.11219661,714.77,713.56,0.28028476]
[1736984639759,3.11213277,714.76,713.56,0.28028476]
[1736984639965,3.11213277,714.75,713.56,0.28028476]
[1736984640165,3.11214967,714.74,713.56,0.28028476]
[1736984640463,3.11214967,714.73,713.56,0.28028476]
[1736984640764,1.89778819,714.72,713.56,0.28028476]
[1736984641062,1.04777343,715.24,713.56,0.28028476]
[1736984641063,1.89778819,714.71,713.56,0.28028476]
[1736984641264,1.89778594,714.7,713.56,0.28028476]
[1736984641463,1.89778594,714.69,713.56,0.28028476]
[1736984641664,1.89778594,714.68,713.56,0.28028476]
[1736984641861,1.89778594,714.67,713.56,0.28028476]
[1736984642061,1.89778594,714.66,713.56,0.28028476]
[1736984642265,1.89778594,714.65,713.56,1.51228476]
[1736984642469,1.89778594,714.64,713.56,1.51228476]
[1736984642672,1.89776795,714.63,713.56,1.51228476]
[1736984642870,1.13881226,714.62,713.56,1.51228476]
[1736984643063,1.04777343,714.95,713.56,1.51228476]
[1736984643368,3.11204973,714.94,713.56,1.51228476]
[1736984643571,1.25732812,715.6,713.56,1.51228476]
[1736984643572,1.04777343,714.87,713.56,1.51228476]
[1736984643763,3.11204973,714.86,713.56,1.51228476]
[1736984643965,3.11204973,714.85,713.56,1.51228476]
[1736984644269,3.11204973,714.84,713.56,1.51228476]
[1736984644468,3.11204973,714.83,713.56,1.51228476]
[1736984644660,3.11204973,714.82,713.56,1.51228476]
[1736984644860,1.1387759,714.81,713.56,1.51228476]
[1736984645067,3.11204283,714.8,713.56,1.51228476]
[1736984645268,3.11204283,714.79,713.56,1.51228476]
[1736984645463,1.04777343,714.99,713.56,1.51228476]
[1736984645464,3.11204283,714.78,713.56,1.51228476]
[1736984645665,3.11204283,714.77,713.56,1.51228476]
[1736984645867,3.11204283,714.76,713.56,1.51228476]
[1736984646172,3.11204283,714.75,713.56,1.51228476]
[1736984646366,3.11204283,714.74,713.56,1.51228476]
[1736984646567,3.11207454,714.73,713.56,1.51228476]
[1736984646767,3.11207443,714.72,713.56,1.51228476]
[1736984646967,1.89776419,714.71,713.56,1.51228476]
[1736984647160,1.89776395,714.7,713.56,1.51228476]
[1736984647364,1.89776395,714.69,713.56,3.47328476]
[1736984647567,1.89776395,714.68,713.56,3.47328476]
[1736984647765,1.89776395,714.67,713.56,3.47328476]
[1736984647965,1.89776395,714.66,713.56,3.47328476]
[1736984648168,1.89776395,714.65,713.56,3.47328476]
[1736984648367,1.89776395,714.64,713.56,3.47328476]
[1736984648566,1.89776395,714.63,713.56,3.47328476]
[1736984648766,1.89776395,714.62,713.56,3.47328476]
[1736984648967,1.89781469,714.61,713.56,3.47328476]
[1736984649163,1.13884756,714.6,713.56,3.47328476]
[1736984649369,1.04777343,714.99,713.56,3.47328476]
[1736984649568,1.04777343,714.87,713.56,3.47328476]
[1736984649769,3.11233838,714.86,713.56,3.47328476]
[1736984649970,3.11233838,714.85,713.56,3.47328476]
[1736984650170,3.11233838,714.84,713.56,3.47328476]
[1736984650367,3.11233838,714.83,713.56,3.47328476]
[1736984650564,3.11233838,714.82,713.56,3.47328476]
[1736984650768,3.11233838,714.81,713.56,3.47328476]
[1736984650963,3.11233838,714.8,713.56,3.47328476]
[1736984651169,3.11233838,714.79,713.56,3.47328476]
[1736984651366,1.04777343,714.86,713.56,3.47328476]
[1736984651367,3.11233838,714.78,713.56,3.47328476]
[1736984651564,3.11233838,714.77,713.56,3.47328476]
[1736984651768,3.11233838,714.76,713.56,3.47328476]
[1736984651969,3.11233838,714.75,713.56,3.47328476]
[1736984652271,3.11233838,714.74,713.56,3.47328476]
[1736984652472,3.11233838,714.73,713.56,3.47328476]
[1736984652670,1.97345796,714.72,713.56,3.47328476]
[1736984652867,3.11252268,714.71,713.56,3.47328476]
[1736984653070,3.11252268,714.7,713.56,3.47328476]
[1736984653370,3.11252268,714.69,713.56,3.47328476]
[1736984653567,3.11252268,714.68,713.56,3.47328476]
[1736984653772,3.11252268,714.67,713.56,3.47328476]
[1736984654072,1.89808701,714.66,713.56,3.47328476]
[1736984654271,1.89808701,714.65,713.56,3.47328476]
[1736984654570,1.13906472,714.64,713.56,3.47328476]
[1736984654767,1.898212,714.63,713.56,3.47328476]
[1736984654972,1.898212,714.62,713.56,3.47328476]
[1736984655169,1.04777343,714.83,713.56,3.47328476]
[1736984655367,3.11286724,714.82,713.56,3.47328476]
[1736984655568,3.11286724,714.81,713.56,3.47328476]
[1736984655770,3.11286724,714.8,713.56,3.47328476]
[1736984655966,3.11286724,714.79,713.56,3.47328476]
[1736984656268,3.11286724,714.78,713.57,2.76469865]
[1736984656573,4.16064067,714.77,713.59,0.28027298]
[1736984656770,3.11286724,714.76,713.59,0.28027298]
[1736984656971,3.11286724,714.75,713.59,0.28027298]
[1736984657266,3.11286724,714.74,713.59,0.28027298]
[1736984657466,3.11286724,714.73,713.6,2.76469865]
[1736984657665,3.11286724,714.72,713.62,0.2802612]
[1736984657870,3.11286724,714.71,713.62,0.2802612]
[1736984658069,3.11286724,714.7,713.62,0.2802612]
[1736984658269,3.11286724,714.69,713.62,0.2802612]
[1736984658573,3.11286724,714.68,713.63,2.76469865]
[1736984658769,3.11286724,714.67,713.65,0.28024942]
[1736984658971,3.11286724,714.66,713.65,0.28024942]
[1736984659168,1.89822423,714.65,713.65,0.28024942]
[1736984659375,1.89822423,714.64,713.65,0.28024942]
[1736984659668,1.89822423,714.63,713.65,0.28024942]
[1736984659973,1.89822423,714.62,713.66,2.76469865]
[1736984660170,1.89822423,714.61,713.66,2.76469865]
[1736984660374,1.89822423,714.6,713.66,2.76469865]
[1736984660668,1.13907235,714.59,713.68,0.28023764]
[1736984660866,1.13912514,714.58,713.68,0.28023764]
[1736984661066,1.04777343,714.74,713.68,0.28023764]
[1736984661274,3.1130296,714.73,713.68,0.28023764]
[1736984661572,3.1130296,714.72,713.68,0.28023764]
[1736984661873,3.1130296,714.71,713.68,0.28023764]
[1736984662074,3.1130296,714.7,713.68,0.28023764]
[1736984662269,3.1130296,714.69,713.68,0.28023764]
[1736984662573,1.89828752,714.68,713.68,1.51323764]
[1736984662773,1.89828752,714.67,713.68,1.51323764]
[1736984662970,1.8982563,714.66,713.68,1.51323764]
[1736984663173,1.8982563,714.65,713.68,1.51323764]
[1736984663473,1.8982563,714.64,713.68,2.86123764]
[1736984663674,1.8982563,714.63,713.68,2.86123764]
[1736984663868,1.13909399,714.62,713.68,2.86123764]
[1736984664068,1.04777343,714.79,713.68,2.86123764]
[1736984664270,3.11286625,714.78,713.68,2.86123764]
[1736984664474,3.11286625,714.77,713.68,2.86123764]
[1736984664674,3.11286625,714.76,713.68,2.86123764]
[1736984664875,3.11286625,714.75,713.68,2.86123764]
[1736984665080,1.04777343,714.79,713.68,2.86123764]
[1736984665081,3.11286625,714.74,713.68,2.86123764]
[1736984665276,3.11286625,714.73,713.68,2.86123764]
[1736984665476,3.11286625,714.72,713.68,2.86123764]
[1736984665676,3.11286625,714.71,713.68,2.86123764]
[1736984665878,1.89822577,714.7,713.68,2.86123764]
[1736984666079,1.89822577,714.69,713.68,2.86123764]
[1736984666277,1.89822577,714.68,713.68,2.86123764]
[1736984666473,1.89821559,714.67,713.68,2.86123764]
[1736984666671,1.89821559,714.66,713.68,2.86123764]
[1736984666875,1.89821559,714.65,713.68,2.86123764]
[1736984667075,1.89821559,714.64,713.68,2.86123764]
[1736984667277,1.89821559,714.63,713.68,2.86123764]
[1736984667480,1.13906529,714.62,713.68,2.86123764]
[1736984667672,1.04777343,714.89,713.68,2.86123764]
[1736984667872,3.11281648,714.88,713.68,2.86123764]
[1736984668071,3.11281648,714.87,713.68,2.86123764]
[1736984668276,3.11281648,714.86,713.68,2.86123764]
[1736984668577,3.11281648,714.85,713.68,2.86123764]
[1736984668778,3.11281648,714.84,713.68,2.86123764]
[1736984669081,3.11281648,714.83,713.68,2.86123764]
[1736984669280,3.11281648,714.82,713.68,2.86123764]
[1736984669475,3.11281648,714.81,713.68,2.86123764]
[1736984669675,3.11281648,714.8,713.68,2.86123764]
[1736984669876,3.11281648,714.79,713.68,2.86123764]
[1736984670178,3.11281648,714.78,713.68,2.86123764]
[1736984670371,3.11285454,714.77,713.68,2.86123764]
[1736984670575,3.11285454,714.76,713.68,2.86123764]
[1736984670770,1.13907032,714.75,713.68,2.86123764]
[1736984670973,3.11284778,714.74,713.68,2.86123764]
[1736984671174,3.11284778,714.73,713.68,2.86123764]
[1736984671382,3.11284778,714.72,713.68,2.86123764]
[1736984671578,3.11284778,714.71,713.68,2.86123764]
[1736984671880,1.8982155,714.7,713.68,2.86123764]
[1736984672182,1.8982155,714.69,713.68,2.86123764]
[1736984672375,1.8982155,714.68,713.68,2.86123764]
[1736984672577,1.8982155,714.67,713.68,2.86123764]
[1736984672777,1.8982155,714.66,713.68,2.86123764]
[1736984672980,1.8982155,714.65,713.68,2.86123764]
[1736984673174,1.04777343,714.86,713.68,2.86123764]
[1736984673175,1.8982155,714.64,713.68,2.86123764]
[1736984673374,1.8982155,714.63,713.68,2.86123764]
[1736984673575,1.13907032,714.62,713.68,2.86123764]
[1736984673776,1.13913718,714.61,713.68,2.86123764]
[1736984673980,1.04777343,714.9,713.68,2.86123764]
[1736984674281,3.11312102,714.89,713.68,2.86123764]
[1736984674484,3.11312102,714.88,713.68,2.86123764]
[1736984674682,3.11312102,714.87,713.68,2.86123764]
[1736984674874,3.11312102,714.86,713.68,2.86123764]
[1736984675076,3.11312102,714.85,713.68,2.86123764]
[1736984675280,3.11312102,714.84,713.68,2.86123764]
[1736984675483,3.11312102,714.83,713.68,2.86123764]
[1736984675676,3.11312102,714.82,713.68,2.86123764]
[1736984675880,3.11312102,714.81,713.68,2.86123764]
[1736984676080,3.11312102,714.8,713.68,2.86123764]
[1736984676279,3.11312102,714.79,713.68,2.86123764]
[1736984676479,3.11312102,714.78,713.68,2.86123764]
[1736984676679,3.11312102,714.77,713.68,2.86123764]
[1736984676880,3.11321115,714.76,713.68,2.86123764]
[1736984677079,3.11321115,714.75,713.68,2.86123764]
[1736984677284,3.11321115,714.74,713.68,2.86123764]
[1736984677481,3.11321115,714.73,713.68,2.86123764]
[1736984677784,3.11321115,714.72,713.68,2.86123764]
[1736984677978,3.11321115,714.71,713.68,2.86123764]
[1736984678178,1.89841538,714.7,713.68,2.86123764]
[1736984678483,1.89841538,714.69,713.68,2.86123764]
[1736984678778,1.89841538,714.68,713.68,2.86123764]
[1736984678983,1.89841538,714.67,713.68,2.86123764]
[1736984679180,1.89841538,714.66,713.68,2.86123764]
[1736984679379,1.89841538,714.65,713.68,2.86123764]
[1736984679582,1.89841538,714.64,713.68,2.86123764]
[1736984679785,1.89841538,714.63,713.68,2.86123764]
[1736984680084,1.89841538,714.62,713.68,2.86123764]
[1736984680278,1.04777343,714.89,713.68,2.86123764]
[1736984680478,3.11340086,714.88,713.68,2.86123764]
[1736984680679,3.11340086,714.87,713.68,2.86123764]
[1736984680879,3.11340086,714.86,713.68,2.86123764]
[1736984681083,3.11340086,714.85,713.68,2.86123764]
[1736984681284,3.11340086,714.84,713.68,2.86123764]
[1736984681483,3.11340086,714.83,713.68,2.86123764]
[1736984681679,3.11340086,714.82,713.68,2.86123764]
[1736984681888,3.11340086,714.81,713.68,2.86123764]
[1736984682083,3.11340086,714.8,713.68,2.86123764]
[1736984682284,3.11340086,714.79,713.68,2.86123764]
[1736984682488,3.11340086,714.78,713.68,2.86123764]
[1736984682688,3.11340086,714.77,713.68,2.86123764]
[1736984682881,3.11340086,714.76,713.68,2.86123764]
[1736984683082,3.11340086,714.75,713.68,2.86123764]
[1736984683286,3.11340086,714.74,713.68,2.86123764]
[1736984683482,1.89855336,714.73,713.68,2.86123764]
[1736984683688,1.89855336,714.72,713.68,2.86123764]
[1736984683886,1.89855336,714.71,713.68,2.86123764]
[1736984684084,1.89855336,714.7,713.68,2.86123764]
[1736984684294,1.89855336,714.69,713.68,2.86123764]
[1736984684488,1.89855336,714.68,713.68,2.86123764]
[1736984684797,1.89855336,714.67,713.68,2.86123764]
[1736984685089,1.04777343,714.94,713.68,2.86123764]
[1736984685090,1.89855336,714.66,713.68,2.86123764]
[1736984685293,1.13927368,714.65,713.68,2.86123764]
[1736984685488,1.04777343,714.94,713.68,2.86123764]
[1736984685693,1.04777343,714.92,713.68,2.86123764]
[1736984685889,3.11309961,714.91,713.68,2.86123764]
[1736984686093,3.11309961,714.9,713.68,2.86123764]
[1736984686289,3.11307889,714.89,713.68,2.86123764]
[1736984686490,3.11307889,714.88,713.68,2.86123764]
[1736984686687,3.11307889,714.87,713.68,2.86123764]
[1736984686888,3.11307889,714.86,713.68,2.86123764]
[1736984687087,3.11307889,714.85,713.68,2.86123764]
[1736984687291,1.04777343,714.93,713.68,2.86123764]
[1736984687292,3.11307889,714.84,713.68,2.86123764]
[1736984687489,3.11307889,714.83,713.68,2.86123764]
[1736984687692,1.89834955,714.82,713.68,2.86123764]
[1736984687995,1.89834955,714.81,713.68,2.86123764]
[1736984688190,1.89834955,714.8,713.69,2.76199492]
[1736984688387,1.89790533,714.79,713.71,0.28022586]
[1736984688592,1.89790533,714.78,713.71,0.28022586]
[1736984688894,1.89790533,714.77,713.71,0.28022586]
[1736984689193,1.04777343,714.99,713.71,0.28022586]
[1736984689395,3.11064851,714.98,713.71,0.28022586]
[1736984689594,3.11064851,714.97,713.71,2.98822586]
[1736984689894,3.11064851,714.96,713.71,2.98822586]
[1736984690096,3.11064851,714.95,713.71,2.98822586]
[1736984690293,3.1105898,714.94,713.71,2.98822586]
[1736984690488,3.1105898,714.93,713.71,2.98822586]
[1736984690691,3.1105898,714.92,713.71,2.98822586]
[1736984690893,3.1105042,714.91,713.71,2.98822586]
[1736984691098,3.1105042,714.9,713.71,2.98822586]
[1736984691294,3.1105042,714.89,713.71,2.98822586]
[1736984691494,3.1105042,714.88,713.71,2.98822586]
[1736984691696,3.1105042,714.87,713.71,2.98822586]
[1736984691897,3.1105042,714.86,713.71,2.98822586]
[1736984692196,3.1105042,714.85,713.71,2.98822586]
[1736984692391,3.1105042,714.84,713.71,2.98822586]
[1736984692590,1.04777343,715.05,713.71,2.98822586]
[1736984692591,3.1105042,714.83,713.71,2.98822586]
[1736984692791,1.89679086,714.82,713.71,2.98822586]
[1736984692993,0.27948574,715.6,713.71,2.98822586]
[1736984692994,1.89679086,714.81,713.71,2.98822586]
[1736984693189,1.89679086,714.8,713.71,2.98822586]
[1736984693395,1.89679086,714.79,713.71,2.98822586]
[1736984693590,1.89679086,714.78,713.71,2.98822586]
[1736984693795,1.89679086,714.77,713.71,2.98822586]
[1736984693994,1.89679086,714.76,713.71,2.98822586]
[1736984694195,1.89679086,714.75,713.71,2.98822586]
[1736984694397,1.89679086,714.74,713.71,2.98822586]
[1736984694597,1.13822003,714.73,713.71,2.98822586]
[1736984694798,1.04777343,715.04,713.71,2.98822586]
[1736984694998,3.10981878,715.03,713.71,2.98822586]
[1736984695293,3.10981878,715.02,713.71,2.98822586]
[1736984695498,3.10981878,715.01,713.71,2.98822586]
[1736984695694,3.10981878,715.0,713.71,2.98822586]
[1736984695894,3.10981878,714.99,713.71,2.98822586]
[1736984696095,3.10981878,714.98,713.71,2.98822586]
[1736984696493,3.10981878,714.97,713.71,2.98822586]
[1736984696693,3.10981878,714.96,713.71,2.98822586]
[1736984696893,3.10981878,714.95,713.71,2.98822586]
[1736984697092,3.10981878,714.94,713.71,2.98822586]
[1736984697293,3.10981878,714.93,713.71,2.98822586]
[1736984697496,1.04777343,715.42,713.71,2.98822586]
[1736984697497,3.10981878,714.92,713.71,2.98822586]
[1736984697699,3.10981878,714.91,713.71,2.98822586]
[1736984697899,3.10981878,714.9,713.71,2.98822586]
[1736984698098,3.10981878,714.89,713.71,2.98822586]
[1736984698290,3.10981878,714.88,713.71,2.98822586]
[1736984698495,3.10981878,714.87,713.71,2.98822586]
[1736984698695,3.10981878,714.86,713.71,2.98822586]
[1736984698894,3.10981878,714.85,713.71,2.98822586]
[1736984699198,3.10960417,714.84,713.71,2.98822586]
[1736984699398,3.10960417,714.83,713.71,2.98822586]
[1736984699593,3.10960417,714.82,713.71,2.98822586]
[1736984699798,1.04777343,715.03,713.71,2.98822586]
[1736984700401,3.1095665,715.02,713.71,2.98822586]
[1736984700600,3.1095665,715.01,713.71,2.98822586]
[1736984700795,3.1095665,715.0,713.71,2.98822586]
[1736984700995,3.1095665,714.99,713.71,2.98822586]
[1736984701200,3.1095665,714.98,713.71,2.98822586]
[1736984701400,3.1095665,714.97,713.71,2.98822586]
[1736984701599,3.1095665,714.96,713.71,2.98822586]
[1736984701796,3.1095665,714.95,713.71,2.98822586]
[1736984701994,3.1095665,714.94,713.71,2.98822586]
[1736984702202,3.1095665,714.93,713.71,2.98822586]
[1736984702397,3.1095665,714.92,713.71,2.98822586]
[1736984702595,3.1095665,714.91,713.71,2.98822586]
[1736984702795,3.1095665,714.9,713.71,2.98822586]
[1736984702999,3.1095665,714.89,713.71,2.98822586]
[1736984703298,3.1095665,714.88,713.71,2.98822586]
[1736984703498,3.1095665,714.87,713.71,2.98822586]
[1736984703698,3.1095665,714.86,713.71,2.98822586]
[1736984703897,3.1095665,714.85,713.71,2.98822586]
[1736984704104,3.10944015,714.84,713.71,2.98822586]
[1736984704299,3.10944015,714.83,713.71,2.98822586]
[1736984704600,1.04777343,715.03,713.71,2.98822586]
[1736984704601,3.10944015,714.82,713.71,2.98822586]
[1736984704803,3.10944015,714.81,713.71,2.98822586]
[1736984705000,3.10945089,714.8,713.71,2.98822586]
[1736984705202,1.89614013,714.79,713.71,2.98822586]
[1736984705400,1.89614013,714.78,713.71,2.98822586]
[1736984705697,1.89614013,714.77,713.71,2.98822586]
[1736984705897,1.89614013,714.76,713.71,2.98822586]
[1736984706102,1.89614013,714.75,713.71,2.98822586]
[1736984706301,1.89614013,714.74,713.71,2.98822586]
[1736984706499,1.89611902,714.73,713.71,2.98822586]
[1736984706700,1.13782762,714.72,713.71,2.98822586]
[1736984706895,1.04777343,714.99,713.71,2.98822586]
[1736984707103,3.10935687,714.98,713.71,2.98822586]
[1736984707303,3.10935687,714.97,713.71,2.98822586]
[1736984707605,3.10935687,714.96,713.71,2.98822586]
[1736984707803,3.10935687,714.95,713.71,2.98822586]
[1736984708099,3.10935687,714.94,713.71,2.98822586]
[1736984708304,1.04777343,715.3,713.71,2.98822586]
[1736984708305,3.10935687,714.93,713.71,2.98822586]
[1736984708605,3.10935687,714.92,713.71,2.98822586]
[1736984708803,3.10935687,714.91,713.71,2.98822586]
[1736984708997,3.10935687,714.9,713.71,2.98822586]
[1736984709200,3.10935687,714.89,713.71,2.98822586]
[1736984709401,3.10935687,714.88,713.71,2.98822586]
[1736984709601,3.10935687,714.87,713.71,2.98822586]
[1736984709799,3.10935687,714.86,713.71,2.98822586]
[1736984710002,3.10935687,714.85,713.71,2.98822586]
[1736984710203,3.10935687,714.84,713.71,2.98822586]
[1736984710506,3.10935687,714.83,713.71,2.98822586]
[1736984710705,1.04777343,714.95,713.71,2.98822586]
[1736984710706,3.10935687,714.82,713.71,2.98822586]
[1736984710907,3.10935687,714.81,713.71,2.98822586]
[1736984711203,3.10935687,714.8,713.71,2.98822586]
[1736984711407,1.89608951,714.79,713.71,2.98822586]
[1736984711607,1.89608951,714.78,713.71,2.98822586]
[1736984711807,1.89608951,714.77,713.71,2.98822586]
[1736984712109,1.89608951,714.76,713.71,2.98822586]
[1736984712310,1.89608951,714.75,713.71,2.98822586]
[1736984712608,1.89608951,714.74,713.71,2.98822586]
[1736984712808,1.89608951,714.73,713.71,2.98822586]
[1736984713007,1.89608951,714.72,713.71,2.98822586]
[1736984713207,1.13779741,714.71,713.71,2.98822586]
[1736984713509,1.25732812,715.52,713.71,2.98822586]
[1736984713510,1.04777343,714.99,713.71,2.98822586]
[1736984713708,3.10975787,714.98,713.71,2.98822586]
[1736984713909,3.10975787,714.97,713.71,2.98822586]
[1736984714111,3.1097244,714.96,713.71,2.98822586]
[1736984714305,3.1097244,714.95,713.71,2.98822586]
[1736984714511,3.1097244,714.94,713.71,2.98822586]
[1736984714713,3.1097244,714.93,713.71,2.98822586]
[1736984714912,3.1097244,714.92,713.71,2.98822586]
[1736984715109,3.1097244,714.91,713.71,2.98822586]
[1736984715310,3.1097244,714.9,713.71,2.98822586]
[1736984715512,3.1097244,714.89,713.71,2.98822586]
[1736984715712,3.1097244,714.88,713.71,2.98822586]
[1736984715911,3.1097244,714.87,713.71,2.98822586]
[1736984716114,3.10972147,714.86,713.71,2.98822586]
[1736984716412,3.10972147,714.85,713.71,2.98822586]
[1736984716612,1.89631293,714.84,713.71,2.98822586]
[1736984716808,1.04777343,715.04,713.71,2.98822586]
[1736984716809,1.89631293,714.83,713.71,2.98822586]
[1736984717013,1.89631293,714.82,713.71,2.98822586]
[1736984717215,1.89631293,714.81,713.71,2.98822586]
[1736984717414,1.89631293,714.8,713.71,2.98822586]
[1736984717616,1.89631293,714.79,713.71,2.98822586]
[1736984717814,1.89631293,714.78,713.71,2.98822586]
[1736984718014,1.89631293,714.77,713.71,2.98822586]
[1736984718209,1.89631293,714.76,713.71,2.98822586]
[1736984718516,1.89631293,714.75,713.71,2.98822586]
[1736984718716,1.1379326,714.74,713.71,2.98822586]
[1736984718908,1.1379326,714.73,713.71,2.98822586]
[1736984719108,1.04777343,715.01,713.71,2.98822586]
[1736984719307,3.11000575,715.0,713.71,2.98822586]
[1736984719510,3.11000575,714.99,713.71,2.98822586]
[1736984719713,3.11000575,714.98,713.71,2.98822586]
[1736984719915,3.11000575,714.97,713.71,2.98822586]
[1736984720111,3.11000575,714.96,713.71,2.98822586]
[1736984720316,3.11000575,714.95,713.71,2.98822586]
[1736984720518,3.11000575,714.94,713.71,2.98822586]
[1736984720719,3.11000575,714.93,713.71,2.98822586]
[1736984720915,3.11000575,714.92,713.71,2.98822586]
[1736984721218,3.11000575,714.91,713.71,2.98822586]
[1736984721417,3.11000575,714.9,713.71,2.98822586]
[1736984721618,3.11000575,714.89,713.71,2.98822586]
[1736984721917,3.11000575,714.88,713.71,2.98822586]
[1736984722218,3.11000575,714.87,713.71,2.98822586]
[1736984722518,3.11000575,714.86,713.71,2.98822586]
[1736984722720,3.11000575,714.85,713.71,2.98822586]
[1736984722912,3.11000575,714.84,713.71,2.98822586]
[1736984723218,3.11000575,714.83,713.71,2.98822586]
[1736984723518,3.11000575,714.82,713.71,2.98822586]
[1736984723717,1.89659603,714.81,713.71,2.98822586]
[1736984723918,1.04777343,714.96,713.71,2.98822586]
[1736984723922,1.89659603,714.8,713.71,2.98822586]
[1736984724118,1.89659603,714.79,713.71,2.98822586]
[1736984724420,1.89659603,714.78,713.71,2.98822586]
[1736984724719,1.89659603,714.77,713.71,2.98822586]
[1736984724919,1.89659603,714.76,713.71,2.98822586]
[1736984725119,1.89659603,714.75,713.71,2.98822586]
[1736984725419,1.89659603,714.74,713.71,2.98822586]
[1736984725713,1.8967101,714.73,713.71,2.98822586]
[1736984726020,1.89671239,714.72,713.71,2.98822586]
[1736984726216,1.1381462,714.71,713.71,2.98822586]
[1736984726415,1.04777343,714.95,713.71,2.98822586]
[1736984726719,3.11055756,714.94,713.71,2.98822586]
[1736984726918,3.11055756,714.93,713.71,2.98822586]
[1736984727119,3.11055756,714.92,713.71,2.98822586]
[1736984727322,3.11055756,714.91,713.71,2.98822586]
[1736984727523,3.110579,714.9,713.71,2.98822586]
[1736984727721,3.11061555,714.89,713.71,2.98822586]
[1736984727921,3.11061555,714.88,713.71,2.98822586]
[1736984728122,3.11061555,714.87,713.71,2.98822586]
[1736984728421,3.11061555,714.86,713.71,2.98822586]
[1736984728621,3.11061555,714.85,713.71,2.98822586]
[1736984728821,3.11061555,714.84,713.71,2.98822586]
[1736984729024,3.11061555,714.83,713.71,2.98822586]
[1736984729222,1.89685741,714.82,713.71,2.98822586]
[1736984729418,1.89685741,714.81,713.71,2.98822586]
[1736984729619,1.89685741,714.8,713.71,2.98822586]
[1736984729823,1.89685741,714.79,713.71,2.98822586]
[1736984730020,1.89685741,714.78,713.71,2.98822586]
[1736984730224,1.89685741,714.77,713.71,2.98822586]
[1736984730423,1.89685741,714.76,713.71,2.98822586]
[1736984730621,1.89685741,714.75,713.71,2.98822586]
[1736984730827,1.13825857,714.74,713.71,2.98822586]
[1736984731020,1.04777343,715.0,713.71,2.98822586]
[1736984731221,3.1108105,714.99,713.71,2.98822586]
[1736984731424,2.35216506,714.98,713.71,2.98822586]
[1736984731626,1.25732812,715.62,713.71,2.98822586]
[1736984731627,3.11087535,714.97,713.71,2.98822586]
[1736984731821,3.11087535,714.96,713.71,2.98822586]
[1736984732026,3.1108777,714.95,713.71,2.98822586]
[1736984732227,3.1108777,714.94,713.71,2.98822586]
[1736984732427,3.1108777,714.93,713.71,2.98822586]
[1736984732630,3.1108777,714.92,713.71,2.98822586]
[1736984732927,3.1108777,714.91,713.71,2.98822586]
[1736984733127,3.1108777,714.9,713.71,2.98822586]
[1736984733329,3.1108777,714.89,713.71,2.98822586]
[1736984733523,3.11099322,714.88,713.71,2.98822586]
[1736984733728,3.11099322,714.87,713.71,2.98822586]
[1736984733929,3.11099322,714.86,713.71,2.98822586]
[1736984734131,3.11099322,714.85,713.71,2.98822586]
[1736984734331,3.11099322,714.84,713.71,2.98822586]
[1736984734532,1.25732812,715.74,713.71,2.98822586]
[1736984734533,1.89711916,714.83,713.71,2.98822586]
[1736984734731,1.89711916,714.82,713.71,2.98822586]
[1736984734931,1.89711916,714.81,713.71,2.98822586]
[1736984735131,1.89711916,714.8,713.71,2.98822586]
[1736984735327,1.89711916,714.79,713.71,2.98822586]
[1736984735526,1.89711916,714.78,713.71,2.98822586]
[1736984735728,1.89711916,714.77,713.71,2.98822586]
[1736984735926,1.89711916,714.76,713.71,2.98822586]
[1736984736129,1.04777343,715.07,713.71,2.98822586]
[1736984736130,1.89711916,714.75,713.71,2.98822586]
[1736984736432,1.89711916,714.74,713.71,2.98822586]
[1736984736732,1.13844787,714.73,713.71,2.98822586]
[1736984736931,1.13844787,714.72,713.71,2.98822586]
[1736984737127,1.04777343,715.07,713.71,2.98822586]
[1736984737325,3.1117287,715.06,713.71,2.98822586]
[1736984737528,3.1117287,715.05,713.71,2.98822586]
[1736984737730,3.1117287,715.04,713.71,2.98822586]
[1736984737931,3.1117287,715.03,713.71,2.98822586]
[1736984738132,3.1117287,715.02,713.71,2.98822586]
[1736984738428,3.1117287,715.01,713.71,2.98822586]
[1736984738731,1.25732812,715.79,713.71,2.98822586]
[1736984738732,3.1117287,715.0,713.71,2.98822586]
[1736984739031,3.1117287,714.99,713.71,2.98822586]
[1736984739232,3.11213573,714.98,713.71,2.98822586]
[1736984739434,3.11213573,714.97,713.71,2.98822586]
[1736984739627,1.04777343,715.06,713.71,2.98822586]
[1736984739836,3.11212302,715.05,713.71,2.98822586]
[1736984740026,3.11212302,715.04,713.71,2.98822586]
[1736984740231,3.11212302,715.03,713.71,2.98822586]
[1736984740427,3.11212302,715.02,713.71,2.98822586]
[1736984740632,3.11212302,715.01,713.71,2.98822586]
[1736984740832,3.11212302,715.0,713.71,2.98822586]
[1736984741032,3.11212302,714.99,713.71,2.98822586]
[1736984741237,3.1122633,714.98,713.71,2.98822586]
[1736984741535,3.1122633,714.97,713.71,2.98822586]
[1736984741733,3.1122633,714.96,713.71,2.98822586]
[1736984742034,3.1122633,714.95,713.71,2.98822586]
[1736984742231,1.04777343,715.06,713.71,2.98822586]
[1736984742232,3.1122633,714.94,713.71,2.98822586]
[1736984742426,3.1122633,714.93,713.71,2.98822586]
[1736984742631,3.1122633,714.92,713.71,2.98822586]